[Event "Satka Autumn 2019"]
[Site "Satka"]
[Date "2019.09.24"]
[Round "6.2"]
[White "Charochkina, Daria"]
[Black "Nosacheva, Mariya"]
[Result "1/2-1/2"]
[ECO "E63"]
[WhiteElo "2360"]
[BlackElo "2193"]
[Annotator "NA"]
[PlyCount "80"]
[EventDate "2019.09.19"]
[EventType "swiss"]
[EventCountry "RUS"]
[SourceTitle "playchess.com"]
[Source "ChessBase"]
[SourceQuality "1"]
[TimeControl "5400+30"]

1. d4 {[%emt 0:00:10]} Nf6 {[%emt 0:00:00]} 2. c4 {[%emt 0:00:21]} g6 {[%emt 0:00:00]} 3. Nc3 {[%emt 0:00:09]} Bg7 {[%emt 0:00:00]} 4. g3 {[%emt 0:00:20]} O-O {[%emt 0:00:00]} 5. Bg2 {[%emt 0:00:15]} d6 {[%emt 0:00:15]} 6. Nf3 {[%emt 0:00:15]} Nc6 {[%emt 0:07:04]} 7. O-O {[%emt 0:00:14]} a6 {[%emt 0:00:04]} 8. Bf4 {[%emt 0:00:24]} Rb8 {[%emt 0:00:13]} 9. Rc1 {[%emt 0:00:37]} Bd7 {[%emt 0:01:28]} 10. Qd2 {[%emt 0:01:01]} b5 {[%emt 0:03:16]} 11. Nd5 {[%emt 0:00:10]} bxc4 {[%emt 0:03:01]} 12. Nxf6+ {[%emt 0:00:15]} Bxf6 {[%emt 0:00:31]} 13. Rxc4 {[%emt 0:00:16]} e5 {[%emt 0:01:31]} 14. Bh6 {[%emt 0:00:22]} Re8 {[%emt 0:05:16]} 15. dxe5 {[%emt 0:01:12]} Nxe5 {[%emt 0:00:50]} 16. Nxe5 {[%emt 0:00:12]} Rxe5 {[%emt 0:02:45]} 17. Rfc1 {[%emt 0:22:47]} Rh5 {[%emt 0:04:15]} 18. Rxc7 {[%emt 0:05:59]} Be6 {[%emt 0:00:05]} 19. Bf4 {[%emt 0:10:49]} Rxb2 {[%emt 0:00:33]} 20. R7c2 {[%emt 0:03:14]} Rhb5 {[%emt 0:08:21]} 21. a4 {[%emt 0:07:57]} Rxc2 {[%emt 0:05:15]} 22. Qxc2 {[%emt 0:00:05]} Rc5 {[%emt 0:03:18]} 23. Qd1 {[%emt 0:01:36]} Rxc1 {[%emt 0:01:53]} 24. Qxc1 {[%emt 0:08:46]} h5 {[%emt 0:02:26]} 25. Qd2 {[%emt 0:03:19]} Qb6 {[%emt 0:04:07]} 26. h4 {[%emt 0:02:51]} Qb3 27. a5 {[%emt 0:03:18]} d5 {[%emt 0:16:40]} 28. Bg5 {[%emt 0:02:37]} Bc3 {[%emt 0:06:35]} 29. Qd3 {[%emt 0:00:03]} Qc4 {[%emt 0:00:06]} 30. Bd8 {[%emt 0:00:44]} Qxd3 {[%emt 0:08:07]} 31. exd3 {[%emt 0:00:05]} Bf5 {[%emt 0:01:05]} 32. Bxd5 {[%emt 0:01:18]} Bxd3 {[%emt 0:00:06]} 33. Kg2 {[%emt 0:00:20]} Be2 {[%emt 0:01:57]} 34. f3 {[%emt 0:00:17]} Be1 {[%emt 0:00:55]} 35. g4 {[%emt 0:08:19]} Kf8 {[%emt 0:03:56]} 36. Bc6 {[%emt 0:01:22]} Kg7 {[%emt 0:00:33]} 37. Bd5 {[%emt 0:02:43]} Kf8 {[%emt 0:00:27]} 38. Bc6 {[%emt 0:01:27]} Kg7 {[%emt 0:00:04]} 39. Bd5 {[%emt 0:01:44]} Kf8 {[%emt 0:00:57]} 40. Bc6 {[%emt 0:00:00]} Kg7 {[%emt 0:00:00]} 1/2-1/2

[Event "Satka Autumn 2019"]
[Site "Satka"]
[Date "2019.09.24"]
[Round "6.3"]
[White "Bykova, Anastasia"]
[Black "Mironenko, Galina"]
[Result "0-1"]
[ECO "A46"]
[WhiteElo "2259"]
[BlackElo "1982"]
[Annotator "NA"]
[PlyCount "114"]
[EventDate "2019.09.19"]
[EventType "swiss"]
[EventCountry "RUS"]
[SourceTitle "playchess.com"]
[Source "ChessBase"]
[SourceQuality "1"]
[TimeControl "5400+30"]

1. d4 {[%emt 0:00:00]} Nf6 {[%emt 0:00:00]} 2. Nf3 {[%emt 0:00:00]} e6 {[%emt 0:00:00]} 3. Bf4 {[%emt 0:00:00]} b6 {[%emt 0:00:00]} 4. e3 {[%emt 0:00:00]} Bb7 {[%emt 0:00:22]} 5. Nbd2 {[%emt 0:00:06]} Be7 {[%emt 0:00:47]} 6. h3 {[%emt 0:00:07]} d5 {[%emt 0:01:08]} 7. c3 {[%emt 0:00:12]} Nbd7 {[%emt 0:01:24]} 8. Bd3 {[%emt 0:00:10]} c5 {[%emt 0:01:48]} 9. O-O {[%emt 0:00:10]} O-O {[%emt 0:00:13]} 10. Qe2 {[%emt 0:00:16]} Ne4 {[%emt 0:08:41]} 11. Ne5 {[%emt 0:04:26]} Nxe5 {[%emt 0:07:52]} 12. dxe5 {[%emt 0:05:55]} Nxd2 {[%emt 0:03:58]} 13. Qxd2 {[%emt 0:00:04]} Qd7 {[%emt 0:06:21]} 14. Qc2 {[%emt 0:00:33]} g6 {[%emt 0:01:35]} 15. Qe2 {[%emt 0:03:14]} Bc6 {[%emt 0:06:29]} 16. Rfd1 {[%emt 0:02:44]} Rfd8 {[%emt 0:01:20]} 17. Qg4 {[%emt 0:00:56]} f5 {[%emt 0:06:24]} 18. exf6 {[%emt 0:01:10]} Bxf6 {[%emt 0:00:09]} 19. e4 {[%emt 0:14:29]} e5 {[%emt 0:06:59]} 20. exd5 {[%emt 0:02:28]} Qxg4 {[%emt 0:01:11]} 21. hxg4 {[%emt 0:00:04]} Bxd5 {[%emt 0:00:27]} 22. Bg3 {[%emt 0:00:54]} Kg7 {[%emt 0:06:04]} 23. f3 {[%emt 0:07:02]} h6 {[%emt 0:02:34]} 24. Kf2 {[%emt 0:06:31]} a6 {[%emt 0:04:21]} 25. Bc2 {[%emt 0:06:02]} b5 {[%emt 0:07:12]} 26. a3 {[%emt 0:07:22]} Rac8 {[%emt 0:04:18]} 27. Rd2 {[%emt 0:02:22]} e4 {[%emt 0:04:52]} 28. Rad1 {[%emt 0:03:10]} Bc6 {[%emt 0:02:24]} 29. Bxe4 {[%emt 0:05:11]} Bxe4 {[%emt 0:02:41]} 30. Rd7+ {[%emt 0:00:45]} Kg8 {[%emt 0:03:02]} 31. fxe4 {[%emt 0:00:39]} Bd4+ {[%emt 0:01:58]} 32. cxd4 {[%emt 0:02:33]} Rxd7 {[%emt 0:00:09]} 33. d5 {[%emt 0:00:09]} c4 {[%emt 0:01:26]} 34. e5 {[%emt 0:10:15]} Rc5 {[%emt 0:00:26]} 35. d6 {[%emt 0:00:49]} Kf7 {[%emt 0:00:31]} 36. Ke3 {[%emt 0:04:35]} Ke6 {[%emt 0:00:12]} 37. Rf1 {[%emt 0:09:07]} Rxe5+ {[%emt 0:02:45]} 38. Bxe5 {[%emt 0:00:05]} Kxe5 {[%emt 0:00:05]} 39. Rh1 {[%emt 0:04:07]} Rxd6 {[%emt 0:01:18]} 40. Rxh6 {[%emt 0:00:00]} Rd3+ {[%emt 0:00:00]} 41. Ke2 {[%emt 0:00:00]} Kf6 {[%emt 0:00:00]} 42. Rh7 {[%emt 0:00:00]} Rb3 {[%emt 0:00:00]} 43. Ra7 {[%emt 0:00:00]} Rxb2+ {[%emt 0:00:00]} 44. Ke1 {[%emt 0:00:00]} c3 {[%emt 0:00:00]} 45. Rxa6+ {[%emt 0:00:00]} Ke5 {[%emt 0:00:00]} 46. Kd1 {[%emt 0:00:00]} Kd4 {[%emt 0:00:00]} 47. Rxg6 {[%emt 0:00:00]} Kc4 {[%emt 0:00:00]} 48. Rb6 {[%emt 0:00:00]} Rxg2 {[%emt 0:00:00]} 49. Kc1 {[%emt 0:00:00]} Rxg4 {[%emt 0:00:00]} 50. Rb8 {[%emt 0:00:00]} Rg1+ {[%emt 0:00:00]} 51. Kc2 {[%emt 0:00:00]} Rg2+ {[%emt 0:00:00]} 52. Kb1 {[%emt 0:00:00]} Rb2+ {[%emt 0:00:00]} 53. Ka1 {[%emt 0:00:00]} Kd3 {[%emt 0:00:00]} 54. Rd8+ {[%emt 0:00:00]} Kc2 {[%emt 0:00:15]} 55. Rd4 {[%emt 0:00:00]} b4 {[%emt 0:02:01]} 56. axb4 {[%emt 0:00:00]} Kb3 {[%emt 0:00:13]} 57. Rd3 {[%emt 0:00:00]} Rd2 {[%emt 0:00:17]} 0-1

[Event "Satka Autumn 2019"]
[Site "Satka"]
[Date "2019.09.24"]
[Round "6.4"]
[White "Makarenko, Alexandra"]
[Black "Borisova, Ekaterina"]
[Result "0-1"]
[ECO "B92"]
[WhiteElo "2169"]
[BlackElo "2307"]
[Annotator "NA"]
[PlyCount "84"]
[EventDate "2019.09.19"]
[EventType "swiss"]
[EventCountry "RUS"]
[SourceTitle "playchess.com"]
[Source "ChessBase"]
[SourceQuality "1"]
[TimeControl "5400+30"]

1. e4 {[%emt 0:00:00]} c5 {[%emt 0:00:00]} 2. Nf3 {[%emt 0:00:00]} d6 {[%emt 0:00:00]} 3. d4 {[%emt 0:00:00]} cxd4 {[%emt 0:00:00]} 4. Nxd4 {[%emt 0:00:00]} Nf6 {[%emt 0:00:00]} 5. Nc3 {[%emt 0:00:00]} a6 {[%emt 0:00:00]} 6. Be2 {[%emt 0:00:34]} e5 {[%emt 0:01:45]} 7. Nf3 {[%emt 0:04:48]} Be6 {[%emt 0:00:12]} 8. Bg5 {[%emt 0:01:34]} Nbd7 {[%emt 0:00:07]} 9. O-O {[%emt 0:04:32]} Be7 {[%emt 0:00:07]} 10. Qd2 {[%emt 0:06:19]} O-O {[%emt 0:00:20]} 11. Rfd1 {[%emt 0:04:59]} b5 {[%emt 0:01:03]} 12. Bxf6 {[%emt 0:06:44]} Nxf6 {[%emt 0:00:15]} 13. a4 {[%emt 0:01:28]} b4 {[%emt 0:14:35]} 14. Nd5 {[%emt 0:00:06]} Nxe4 {[%emt 0:02:10]} 15. Qxb4 {[%emt 0:18:24]} Bxd5 {[%emt 0:03:04]} 16. Rxd5 {[%emt 0:00:05]} Nf6 {[%emt 0:00:38]} 17. Rdd1 {[%emt 0:00:32]} Qc7 {[%emt 0:08:36]} 18. Qc4 {[%emt 0:04:36]} Qb7 {[%emt 0:02:32]} 19. Qa2 {[%emt 0:00:33]} Qe4 {[%emt 0:05:42]} 20. Qc4 {[%emt 0:07:29]} Qb7 {[%emt 0:00:41]} 21. Qa2 {[%emt 0:00:39]} Rac8 {[%emt 0:06:27]} 22. c3 {[%emt 0:01:42]} a5 {[%emt 0:02:08]} 23. Bc4 {[%emt 0:01:31]} Qe4 {[%emt 0:04:27]} 24. Bd5 {[%emt 0:00:20]} Qf4 {[%emt 0:00:19]} 25. g3 {[%emt 0:00:44]} Qg4 {[%emt 0:03:37]} 26. Ne1 {[%emt 0:13:45]} h5 {[%emt 0:08:10]} 27. Ng2 {[%emt 0:04:08]} h4 {[%emt 0:15:22]} 28. Ne3 {[%emt 0:04:00]} Qg5 {[%emt 0:03:07]} 29. Bg2 {[%emt 0:04:18]} Bd8 {[%emt 0:04:43]} 30. Rxd6 {[%emt 0:03:17]} Be7 {[%emt 0:00:23]} 31. gxh4 {[%emt 0:01:23]} Qh5 {[%emt 0:02:33]} 32. Ra6 {[%emt 0:03:10]} Bc5 {[%emt 0:00:18]} 33. Re1 {[%emt 0:02:08]} Rfd8 {[%emt 0:02:59]} 34. Nd5 {[%emt 0:01:08]} Ng4 {[%emt 0:01:44]} 35. Rf1 {[%emt 0:01:11]} Qxh4 {[%emt 0:00:21]} 36. h3 {[%emt 0:00:17]} Nxf2 {[%emt 0:01:23]} 37. Kh2 {[%emt 0:01:32]} Rxd5 {[%emt 0:00:55]} 38. Rxf2 {[%emt 0:00:30]} Qxf2 {[%emt 0:01:10]} 39. Qxd5 {[%emt 0:00:05]} Qf4+ {[%emt 0:00:03]} 40. Kh1 {[%emt 0:00:00]} Qc1+ {[%emt 0:00:00]} 41. Kh2 {[%emt 0:00:00]} Bg1+ {[%emt 0:00:00]} 42. Kg3 {[%emt 0:00:00]} Qf4# {[%emt 0:00:00]} 0-1

[Event "Satka Autumn 2019"]
[Site "Satka"]
[Date "2019.09.24"]
[Round "6.5"]
[White "Lysenko, Margarita"]
[Black "Filippova, Darya"]
[Result "1-0"]
[ECO "E00"]
[WhiteElo "2249"]
[BlackElo "2110"]
[Annotator "NA"]
[PlyCount "41"]
[EventDate "2019.09.19"]
[EventType "swiss"]
[EventCountry "RUS"]
[SourceTitle "playchess.com"]
[Source "ChessBase"]
[SourceQuality "1"]
[TimeControl "5400+30"]

1. d4 {[%emt 0:00:00]} e6 {[%emt 0:00:01]} 2. c4 {[%emt 0:00:05]} Bb4+ {[%emt 0:00:31]} 3. Nc3 {[%emt 0:01:12]} b6 {[%emt 0:00:23]} 4. e4 {[%emt 0:03:28]} Bb7 {[%emt 0:00:26]} 5. Qc2 {[%emt 0:02:48]} Qh4 {[%emt 0:03:03]} 6. d5 {[%emt 0:09:01]} Bxc3+ {[%emt 0:05:51]} 7. bxc3 {[%emt 0:00:26]} f5 {[%emt 0:00:42]} 8. exf5 {[%emt 0:02:37]} exd5 {[%emt 0:00:19]} 9. cxd5 {[%emt 0:19:47]} Bxd5 {[%emt 0:01:21]} 10. Ne2 {[%emt 0:03:40]} Be4 {[%emt 0:15:33]} 11. Qa4 {[%emt 0:03:01]} Qe7 {[%emt 0:00:13]} 12. Ba3 {[%emt 0:02:08]} c5 {[%emt 0:00:46]} 13. O-O-O {[%emt 0:04:15]} Bxf5 {[%emt 0:02:59]} 14. Ng3 {[%emt 0:21:46]} Be6 {[%emt 0:01:16]} 15. Bc4 {[%emt 0:01:05]} Qh4 {[%emt 0:03:31]} 16. Rhe1 {[%emt 0:01:58]} Kf8 {[%emt 0:01:34]} 17. Re4 {[%emt 0:01:22]} Qh6+ {[%emt 0:00:30]} 18. Kb2 {[%emt 0:01:27]} Bxc4 {[%emt 0:00:31]} 19. Qxc4 {[%emt 0:01:58]} Qc6 {[%emt 0:01:05]} 20. Nf5 {[%emt 0:01:41]} Nf6 {[%emt 0:00:30]} 21. Nd6 {[%emt 0:00:37]} 1-0

[Event "Satka Autumn 2019"]
[Site "Satka"]
[Date "2019.09.24"]
[Round "6.6"]
[White "Dubnikova, Anastasia"]
[Black "Prudnikova, Svetlana"]
[Result "1-0"]
[ECO "E47"]
[WhiteElo "2056"]
[BlackElo "2234"]
[Annotator "NA"]
[PlyCount "115"]
[EventDate "2019.09.19"]
[EventType "swiss"]
[EventCountry "RUS"]
[SourceTitle "playchess.com"]
[Source "ChessBase"]
[SourceQuality "1"]
[TimeControl "5400+30"]

1. d4 {[%emt 0:00:00]} Nf6 {[%emt 0:00:00]} 2. c4 {[%emt 0:00:00]} e6 {[%emt 0:00:00]} 3. Nc3 {[%emt 0:00:00]} Bb4 {[%emt 0:00:04]} 4. e3 {[%emt 0:00:15]} O-O {[%emt 0:00:23]} 5. Bd3 {[%emt 0:00:16]} c5 {[%emt 0:00:32]} 6. Nf3 {[%emt 0:00:13]} Nc6 {[%emt 0:01:35]} 7. O-O {[%emt 0:00:17]} Bxc3 {[%emt 0:00:40]} 8. bxc3 {[%emt 0:00:06]} d6 {[%emt 0:00:23]} 9. Nd2 {[%emt 0:14:33]} e5 {[%emt 0:01:40]} 10. Nb3 {[%emt 0:00:16]} b6 {[%emt 0:10:43]} 11. Bc2 {[%emt 0:10:57]} Ba6 {[%emt 0:04:11]} 12. d5 {[%emt 0:03:55]} Ne7 {[%emt 0:00:24]} 13. Nd2 {[%emt 0:00:32]} Bc8 {[%emt 0:04:31]} 14. a4 {[%emt 0:05:06]} a5 {[%emt 0:06:14]} 15. f3 {[%emt 0:07:28]} h6 {[%emt 0:10:11]} 16. Rb1 {[%emt 0:13:56]} Rb8 {[%emt 0:10:21]} 17. Kh1 {[%emt 0:06:54]} Nh7 {[%emt 0:04:21]} 18. f4 {[%emt 0:04:51]} exf4 {[%emt 0:04:30]} 19. exf4 {[%emt 0:01:15]} Bf5 {[%emt 0:00:09]} 20. Ne4 {[%emt 0:00:33]} Qd7 {[%emt 0:04:01]} 21. h3 {[%emt 0:02:48]} Kh8 {[%emt 0:10:29]} 22. g4 {[%emt 0:04:52]} Bxe4+ {[%emt 0:00:05]} 23. Bxe4 {[%emt 0:00:04]} f5 {[%emt 0:00:04]} 24. Bd3 {[%emt 0:01:32]} g6 {[%emt 0:08:48]} 25. Rb2 {[%emt 0:03:14]} Rf7 {[%emt 0:02:45]} 26. Rg2 {[%emt 0:01:09]} Rg8 {[%emt 0:02:08]} 27. g5 {[%emt 0:02:58]} h5 {[%emt 0:01:07]} 28. Re1 {[%emt 0:00:12]} Nf8 {[%emt 0:01:36]} 29. Rge2 {[%emt 0:00:43]} Rh7 {[%emt 0:01:58]} 30. Qb3 {[%emt 0:00:40]} Nc8 {[%emt 0:01:24]} 31. Re8 {[%emt 0:07:38]} Rhg7 {[%emt 0:00:21]} 32. Qb5 {[%emt 0:01:01]} Qxb5 {[%emt 0:00:29]} 33. cxb5 {[%emt 0:00:07]} Nd7 {[%emt 0:01:39]} 34. R8e2 {[%emt 0:01:46]} Rf7 {[%emt 0:01:48]} 35. c4 {[%emt 0:00:08]} Kh7 {[%emt 0:01:35]} 36. Bb2 {[%emt 0:00:14]} Rd8 {[%emt 0:01:58]} 37. Kg2 {[%emt 0:01:19]} Rg8 {[%emt 0:00:13]} 38. Kg3 {[%emt 0:00:07]} Rd8 {[%emt 0:00:24]} 39. Kh4 {[%emt 0:00:07]} Rg8 {[%emt 0:01:49]} 40. Bc3 {[%emt 0:00:00]} Rd8 {[%emt 0:00:00]} 41. Re6 {[%emt 0:00:00]} Rdf8 {[%emt 0:00:00]} 42. Bc2 {[%emt 0:00:00]} Rg8 {[%emt 0:00:00]} 43. Bd1 {[%emt 0:00:00]} Nf8 {[%emt 0:00:00]} 44. R6e3 {[%emt 0:00:00]} Nd7 {[%emt 0:00:00]} 45. Re6 {[%emt 0:00:00]} Nf8 {[%emt 0:00:00]} 46. Re8 {[%emt 0:00:00]} Nd7 {[%emt 0:00:00]} 47. Bxh5 {[%emt 0:00:00]} Rxe8 {[%emt 0:00:00]} 48. Rxe8 {[%emt 0:00:00]} Rf8 {[%emt 0:00:00]} 49. Bxg6+ {[%emt 0:00:00]} Kxg6 {[%emt 0:00:00]} 50. Re6+ {[%emt 0:00:00]} Kf7 {[%emt 0:00:00]} 51. g6+ {[%emt 0:00:00]} Kg8 {[%emt 0:00:00]} 52. Kg5 {[%emt 0:00:00]} Rd8 {[%emt 0:00:05]} 53. h4 {[%emt 0:00:00]} Nf8 {[%emt 0:01:20]} 54. Re2 {[%emt 0:00:00]} Rd7 {[%emt 0:03:12]} 55. Re8 {[%emt 0:00:00]} Re7 {[%emt 0:00:47]} 56. Rxc8 {[%emt 0:00:00]} Re3 {[%emt 0:01:56]} 57. g7 {[%emt 0:00:00]} Rg3+ {[%emt 0:01:03]} 58. Kxf5 {[%emt 0:00:00]} 1-0

[Event "Satka Autumn 2019"]
[Site "Satka"]
[Date "2019.09.24"]
[Round "6.7"]
[White "Semenova, Elena"]
[Black "Mirzaeva, Gulnara"]
[Result "1-0"]
[ECO "B31"]
[WhiteElo "2303"]
[BlackElo "1936"]
[Annotator "NA"]
[PlyCount "81"]
[EventDate "2019.09.19"]
[EventType "swiss"]
[EventCountry "RUS"]
[SourceTitle "playchess.com"]
[Source "ChessBase"]
[SourceQuality "1"]
[TimeControl "5400+30"]

1. e4 {[%emt 0:00:00]} c5 {[%emt 0:00:00]} 2. Nf3 {[%emt 0:00:00]} Nc6 {[%emt 0:00:00]} 3. Bb5 {[%emt 0:00:00]} g6 {[%emt 0:00:07]} 4. Bxc6 {[%emt 0:00:01]} bxc6 {[%emt 0:00:06]} 5. O-O {[%emt 0:00:42]} Bg7 {[%emt 0:01:11]} 6. c3 {[%emt 0:00:40]} Nh6 {[%emt 0:01:22]} 7. Re1 {[%emt 0:02:55]} O-O {[%emt 0:00:35]} 8. h3 {[%emt 0:00:32]} f6 {[%emt 0:01:23]} 9. d4 {[%emt 0:06:35]} cxd4 {[%emt 0:00:43]} 10. cxd4 {[%emt 0:00:23]} Nf7 {[%emt 0:02:12]} 11. Nc3 {[%emt 0:02:38]} d6 {[%emt 0:00:42]} 12. Be3 {[%emt 0:03:50]} Qc7 {[%emt 0:01:09]} 13. Rc1 {[%emt 0:01:25]} f5 {[%emt 0:12:27]} 14. Ng5 {[%emt 0:28:40]} Kh8 {[%emt 0:30:35]} 15. Qa4 {[%emt 0:18:02]} Nd8 {[%emt 0:08:00]} 16. exf5 {[%emt 0:02:30]} Rxf5 {[%emt 0:04:32]} 17. d5 {[%emt 0:03:46]} e5 {[%emt 0:22:34]} 18. dxc6 {[%emt 0:02:24]} Qxc6 {[%emt 0:03:21]} 19. Nb5 {[%emt 0:05:19]} Qd7 {[%emt 0:01:18]} 20. Rc7 {[%emt 0:03:53]} Qe8 {[%emt 0:00:06]} 21. Qh4 {[%emt 0:02:16]} Rxg5 {[%emt 0:04:33]} 22. Bxg5 {[%emt 0:01:19]} Ne6 {[%emt 0:00:41]} 23. Nxd6 {[%emt 0:02:29]} Qf8 {[%emt 0:00:19]} 24. Rxc8 {[%emt 0:02:03]} Rxc8 {[%emt 0:00:49]} 25. Nxc8 {[%emt 0:00:06]} Qxc8 {[%emt 0:00:29]} 26. Bf6 {[%emt 0:00:17]} Qc5 {[%emt 0:01:21]} 27. Rxe5 {[%emt 0:02:20]} Qc1+ {[%emt 0:01:03]} 28. Kh2 {[%emt 0:00:05]} g5 {[%emt 0:00:33]} 29. Rxe6 {[%emt 0:03:04]} Bxf6 {[%emt 0:00:38]} 30. Qb4 {[%emt 0:01:41]} Qc7+ {[%emt 0:00:34]} 31. g3 {[%emt 0:00:41]} Qd8 {[%emt 0:00:16]} 32. Qd6 {[%emt 0:00:41]} Qxd6 {[%emt 0:00:22]} 33. Rxd6 {[%emt 0:00:02]} Bxb2 {[%emt 0:00:10]} 34. Rd8+ {[%emt 0:00:14]} Kg7 {[%emt 0:00:04]} 35. Rd7+ {[%emt 0:00:03]} Kg6 {[%emt 0:00:12]} 36. Rxa7 {[%emt 0:00:04]} Bd4 {[%emt 0:00:08]} 37. Ra6+ {[%emt 0:00:04]} Kf5 {[%emt 0:02:55]} 38. a4 {[%emt 0:00:06]} g4 {[%emt 0:00:38]} 39. hxg4+ {[%emt 0:00:14]} Kxg4 {[%emt 0:00:07]} 40. Kg2 {[%emt 0:00:00]} h5 {[%emt 0:00:00]} 41. Ra5 {[%emt 0:00:00]} 1-0

[Event "Satka Autumn 2019"]
[Site "Satka"]
[Date "2019.09.24"]
[Round "6.8"]
[White "Benderac, Ana"]
[Black "Lebedeva, Ulyana"]
[Result "1-0"]
[ECO "D02"]
[WhiteElo "2228"]
[BlackElo "1660"]
[Annotator "NA"]
[PlyCount "105"]
[EventDate "2019.09.19"]
[EventType "swiss"]
[EventCountry "RUS"]
[SourceTitle "playchess.com"]
[Source "ChessBase"]
[SourceQuality "1"]
[TimeControl "5400+30"]

1. d4 {[%emt 0:00:00]} d5 {[%emt 0:00:00]} 2. Nf3 {[%emt 0:00:00]} e6 {[%emt 0:00:00]} 3. Bg5 {[%emt 0:00:17]} Be7 {[%emt 0:00:00]} 4. h4 {[%emt 0:00:58]} h6 {[%emt 0:01:08]} 5. Bxe7 {[%emt 0:00:05]} Qxe7 {[%emt 0:00:24]} 6. c3 {[%emt 0:00:10]} Nf6 {[%emt 0:00:17]} 7. Nbd2 {[%emt 0:02:51]} b6 {[%emt 0:03:43]} 8. e3 {[%emt 0:01:43]} Bb7 {[%emt 0:02:50]} 9. Ne5 {[%emt 0:00:31]} Nbd7 {[%emt 0:00:49]} 10. f4 {[%emt 0:01:44]} Nxe5 {[%emt 0:03:08]} 11. fxe5 {[%emt 0:00:12]} Ne4 {[%emt 0:02:12]} 12. Nxe4 {[%emt 0:01:19]} dxe4 {[%emt 0:00:02]} 13. Bb5+ {[%emt 0:00:51]} c6 {[%emt 0:01:43]} 14. Ba4 {[%emt 0:00:04]} f5 {[%emt 0:06:06]} 15. exf6 {[%emt 0:01:46]} gxf6 {[%emt 0:01:31]} 16. Qg4 {[%emt 0:01:01]} f5 {[%emt 0:01:02]} 17. Qf4 {[%emt 0:00:04]} O-O-O {[%emt 0:01:21]} 18. g4 {[%emt 0:03:52]} Rdf8 {[%emt 0:07:42]} 19. O-O-O {[%emt 0:03:35]} Qc7 {[%emt 0:01:42]} 20. g5 {[%emt 0:01:50]} hxg5 {[%emt 0:06:57]} 21. hxg5 {[%emt 0:00:24]} Qxf4 {[%emt 0:01:12]} 22. exf4 {[%emt 0:00:43]} Kc7 {[%emt 0:05:42]} 23. Kd2 {[%emt 0:04:28]} Bc8 {[%emt 0:15:40]} 24. Ke3 {[%emt 0:04:04]} Bd7 {[%emt 0:00:31]} 25. Rdg1 {[%emt 0:00:51]} Rfg8 {[%emt 0:00:54]} 26. b4 {[%emt 0:02:58]} Be8 {[%emt 0:02:48]} 27. c4 {[%emt 0:04:17]} Bh5 {[%emt 0:06:12]} 28. Bd1 {[%emt 0:23:32]} Bxd1 {[%emt 0:03:51]} 29. Rxd1 {[%emt 0:01:19]} a6 {[%emt 0:07:25]} 30. d5 {[%emt 0:02:52]} exd5 {[%emt 0:02:38]} 31. cxd5 {[%emt 0:00:04]} Rd8 {[%emt 0:05:13]} 32. dxc6 {[%emt 0:06:27]} Kxc6 {[%emt 0:03:28]} 33. Rxd8 {[%emt 0:01:02]} Rxd8 {[%emt 0:00:01]} 34. Rh6+ {[%emt 0:00:16]} Rd6 {[%emt 0:00:52]} 35. a4 {[%emt 0:03:16]} Kc7 {[%emt 0:02:21]} 36. a5 bxa5 {[%emt 0:01:31]} 37. bxa5 {[%emt 0:03:26]} Kd7 {[%emt 0:02:14]} 38. Ke2 {[%emt 0:00:17]} Kc7 {[%emt 0:00:26]} 39. Rh7+ {[%emt 0:03:19]} Kd8 {[%emt 0:02:55]} 40. Rf7 {[%emt 0:00:00]} Rd5 {[%emt 0:00:00]} 41. g6 {[%emt 0:00:00]} Ke8 {[%emt 0:00:00]} 42. Rf6 {[%emt 0:00:00]} Ke7 {[%emt 0:00:00]} 43. g7 {[%emt 0:00:00]} Rd8 {[%emt 0:00:00]} 44. Rxf5 {[%emt 0:00:00]} Rg8 {[%emt 0:00:00]} 45. Rg5 {[%emt 0:00:00]} Kf6 {[%emt 0:00:00]} 46. Ke3 {[%emt 0:00:00]} Kf7 {[%emt 0:00:30]} 47. Kxe4 {[%emt 0:00:00]} Re8+ {[%emt 0:00:12]} 48. Kd5 {[%emt 0:00:00]} Rd8+ {[%emt 0:00:24]} 49. Kc6 {[%emt 0:00:00]} Rc8+ {[%emt 0:00:27]} 50. Kb7 {[%emt 0:00:00]} Rg8 {[%emt 0:00:21]} 51. Kxa6 {[%emt 0:00:00]} Rxg7 {[%emt 0:00:32]} 52. Rxg7+ {[%emt 0:00:00]} Kxg7 {[%emt 0:00:04]} 53. Kb6 {[%emt 0:00:00]} 1-0

[Event "Satka Autumn 2019"]
[Site "Satka"]
[Date "2019.09.24"]
[Round "6.9"]
[White "Zyapaeva, Polina"]
[Black "Petrenko, Svetlana"]
[Result "0-1"]
[ECO "B20"]
[WhiteElo "1808"]
[BlackElo "2200"]
[Annotator "NA"]
[PlyCount "78"]
[EventDate "2019.09.19"]
[EventType "swiss"]
[EventCountry "RUS"]
[SourceTitle "playchess.com"]
[Source "ChessBase"]
[SourceQuality "1"]
[TimeControl "5400+30"]

1. e4 {[%emt 0:00:00]} c5 {[%emt 0:00:00]} 2. c4 {[%emt 0:00:00]} Nc6 {[%emt 0:00:34]} 3. Nc3 {[%emt 0:00:01]} g6 {[%emt 0:01:13]} 4. g3 {[%emt 0:00:16]} Bg7 {[%emt 0:00:32]} 5. Bg2 {[%emt 0:00:10]} d6 {[%emt 0:01:28]} 6. d3 {[%emt 0:00:46]} e6 {[%emt 0:02:30]} 7. Nge2 {[%emt 0:01:09]} Nge7 {[%emt 0:00:22]} 8. Be3 {[%emt 0:01:34]} Nd4 {[%emt 0:01:18]} 9. O-O {[%emt 0:05:37]} O-O {[%emt 0:00:47]} 10. Rb1 {[%emt 0:01:35]} Nec6 {[%emt 0:03:39]} 11. a3 {[%emt 0:04:22]} a5 {[%emt 0:00:16]} 12. b3 {[%emt 0:05:29]} Rb8 {[%emt 0:05:49]} 13. Kh1 {[%emt 0:09:15]} f5 {[%emt 0:09:01]} 14. f4 {[%emt 0:04:17]} Bd7 {[%emt 0:02:41]} 15. Nb5 {[%emt 0:15:59]} Qe7 {[%emt 0:08:18]} 16. Bd2 {[%emt 0:08:35]} b6 {[%emt 0:00:51]} 17. Nec3 {[%emt 0:04:01]} Nxb5 {[%emt 0:01:13]} 18. cxb5 {[%emt 0:04:01]} Nd4 {[%emt 0:01:12]} 19. a4 {[%emt 0:00:13]} Bc8 {[%emt 0:05:17]} 20. Re1 {[%emt 0:03:53]} Bb7 {[%emt 0:00:20]} 21. Ne2 {[%emt 0:01:02]} Qd7 {[%emt 0:08:09]} 22. Nxd4 {[%emt 0:00:30]} Bxd4 {[%emt 0:00:17]} 23. Qe2 {[%emt 0:01:01]} e5 {[%emt 0:00:23]} 24. Be3 {[%emt 0:03:35]} exf4 {[%emt 0:13:14]} 25. Bxd4 {[%emt 0:02:22]} cxd4 {[%emt 0:00:07]} 26. gxf4 {[%emt 0:01:49]} Rbc8 {[%emt 0:04:52]} 27. Qf2 {[%emt 0:02:24]} fxe4 {[%emt 0:03:58]} 28. Qxd4 {[%emt 0:04:10]} Rc2 {[%emt 0:06:57]} 29. Rb2 {[%emt 0:06:15]} Rxb2 {[%emt 0:02:18]} 30. Qxb2 {[%emt 0:00:03]} exd3 {[%emt 0:00:03]} 31. Qd2 {[%emt 0:03:27]} Bxg2+ {[%emt 0:02:36]} 32. Qxg2 {[%emt 0:00:03]} Qf7 {[%emt 0:01:32]} 33. Rb1 {[%emt 0:06:00]} Re8 {[%emt 0:07:50]} 34. Qc6 {[%emt 0:01:11]} d2 {[%emt 0:00:58]} 35. Kg2 {[%emt 0:01:07]} Qe6 {[%emt 0:02:39]} 36. Qf3 {[%emt 0:01:15]} Qe2+ {[%emt 0:01:24]} 37. Qf2 {[%emt 0:00:03]} d1=Q {[%emt 0:00:32]} 38. Rxd1 {[%emt 0:00:40]} Qxd1 {[%emt 0:00:03]} 39. Qxb6 {[%emt 0:00:40]} Qg4+ {[%emt 0:00:14]} 0-1